[Event "CIS Master Groups 2024"]
[Site "Vasto"]
[Date "2024.04.14"]
[Round "11.5"]
[White "Stella, Andrea"]
[Black "Fier, Alexandr"]
[Result "1/2-1/2"]
[ECO "E32"]
[WhiteElo "2403"]
[BlackElo "2566"]
[Annotator "TA"]
[PlyCount "121"]
[EventDate "2024.04.07"]
[EventType "team-tourn"]
[EventCountry "ITA"]
[SourceTitle "playchess.com"]
[Source "ChessBase"]
[SourceQuality "1"]
[TimeControl "40/5400+30:900+30"]

{[%evp 32,121,12,0,0,0,0,0,0,0,0,0,0,-8,0,-6,-22,-8,-8,-8,-11,-48,-49,-48,-58,-45,-52,-47,-47,-100,-112,-124,-127,-127,-127,-139,-139,-129,-116,-128,-16,-17,-17,-17,0,0,0,-14,-8,-21,0,0,0,-993,-510,-993,-993,-882,-456,-776,-463,-441,-264,-215,-14,-88,-88,-88,-35,-35,-35,-414,0,0,0,0,0,0,0,0,0,0,0,0,0,0,0,0,0,0,0,0]} 1. d4 {[%emt 0:03:45]} Nf6 {[%emt 0:00:04]} 2. c4 {[%emt 0:00:10]} e6 {[%emt 0:00:02]} 3. Nc3 {[%emt 0:00:12]} Bb4 {[%emt 0:00:05]} 4. Qc2 {[%emt 0:00:05]} O-O {[%emt 0:00:04]} 5. e4 {[%emt 0:00:13]} d6 {[%emt 0:00:05]} 6. e5 {[%emt 0:00:30]} Nfd7 {[%emt 0:00:04]} 7. exd6 {[%emt 0:03:51]} cxd6 {[%emt 0:00:05]} 8. Bd3 {[%emt 0:01:57]} Nc6 {[%emt 0:00:05]} 9. Nge2 {[%emt 0:11:59]} e5 {[%emt 0:00:05]} 10. O-O {[%emt 0:04:16]} exd4 {[%emt 0:07:27]} 11. Nd5 {[%emt 0:05:00]} Nde5 {[%emt 0:01:15]} 12. Bxh7+ {[%emt 0:33:52]} Kh8 {[%emt 0:00:05]} 13. Bd3 {[%emt 0:10:04]} Bc5 {[%emt 0:04:46]} 14. f4 {[%emt 0:00:39]} Nxd3 {[%emt 0:00:07]} 15. Qxd3 {[%emt 0:00:03]} Qh4 {[%emt 0:00:12]} 16. b4 {[%emt 0:12:30] [#]} Bf5 {[%emt 0:18:48]} (16... Nxb4 $1 $15 {was preferrable.} 17. Nxb4 Bf5 (17... Bxb4 18. Bb2 $11)) 17. Qxf5 {[%emt 0:00:17]} d3+ {[%emt 0:00:04]} 18. Be3 {[%emt 0:07:28]} Bxe3+ {[%emt 0:01:00]} 19. Nxe3 {[%emt 0:00:03]} dxe2 {[%emt 0:00:05]} 20. Rfe1 {[%emt 0:00:27]} Rae8 {[%emt 0:00:05]} (20... Nxb4 21. g3 (21. Rxe2 Rae8 $11) 21... Qh7 (21... g6 $2 22. Qb5 $18) 22. Qxh7+ (22. Rxe2 Rae8 $14) 22... Kxh7 23. Rab1 $14 (23. Rxe2 Rfe8 $14)) 21. Nd5 {[%emt 0:00:39]} (21. Rxe2 $2 Nd4 (21... Nxb4 22. Rd1 $14) 22. Qd3 Nxe2+ 23. Qxe2 Qxf4 24. Qh5+ Kg8 $19) 21... Ne7 {[%emt 0:01:58]} 22. Nxe7 {[%emt 0:00:32]} Rxe7 {[%emt 0:00:24]} 23. Qg5 {[%emt 0:02:06]} Qxg5 {[%emt 0:01:45]} 24. fxg5 {[%emt 0:00:02]} Rc8 {[%emt 0:00:04]} 25. Rac1 {[%emt 0:00:42]} d5 {[%emt 0:00:04]} 26. Rc2 {[%emt 0:01:34]} (26. Kf2 {simplifies} dxc4 27. Rxe2 Rec7 28. h4) 26... Rxc4 {[%emt 0:03:14]} 27. Rcxe2 {[%emt 0:00:06]} Rxe2 {[%emt 0:00:04]} 28. Rxe2 {[%emt 0:00:01]} Rxb4 {[%emt 0:00:05]} 29. Re7 {[%emt 0:00:06]} Kg8 {[%emt 0:00:02]} 30. Kf2 {[%emt 0:00:58]} (30. a3 $15 Kf8 31. Rd7) 30... a5 $17 {[%emt 0:00:18]} 31. a4 {[%emt 0:00:26]} b6 {[%emt 0:00:45]} 32. Rb7 {[%emt 0:00:09]} Kh7 $1 {[%emt 0:00:02]} 33. Rxf7 {[%emt 0:01:25]} Rxa4 {[%emt 0:00:04]} 34. Rb7 {[%emt 0:00:03]} Rb4 {[%emt 0:00:07]} 35. h4 {[%emt 0:00:06]} Kg6 {[%emt 0:00:15]} (35... Rxh4 36. Rxb6 Rb4 37. Ra6 $15) (35... d4 $1 $17 {...a4 would now be deadly.} 36. h5 Rb5) 36. g4 $1 $11 {[%emt 0:00:29]} Rxg4 {[%emt 0:04:28]} 37. Rxb6+ {[%emt 0:00:01]} Kh5 {[%emt 0:00:04]} 38. Rb7 {[%emt 0:01:11]} Kg6 {[%emt 0:00:03]} 39. Rb6+ {[%emt 0:00:03]} Kf5 {[%emt 0:06:01]} 40. Rb5 {[%emt 0:00:01]} Ke4 {[%emt 0:00:05]} 41. Rxa5 {[%emt 0:15:14]} Rxh4 {[%emt 0:15:03]} 42. Ra7 $2 {[%emt 0:00:00][%mdl 8192]} (42. Kg3 $11 Rh1 43. Ra7) 42... g6 $19 {[%emt 0:00:00]} 43. Ra4+ {[%emt 0:00:00]} (43. Kg3 $142 Rh1 44. Rd7) 43... d4 $19 {[%emt 0:00:00]} 44. Ra6 {[%emt 0:00:00]} Kf5 {[%emt 0:00:00]} 45. Ra5+ {[%emt 0:00:00]} (45. Kg3 $142 Re4 (45... Kxg5 46. Ra5+ Kf6 47. Kxh4 Ke7 48. Kg3 Ke6 49. Kf4 d3 50. Re5+ Kd6 51. Ke4) 46. Rd6) 45... Kf4 $1 $19 {[%emt 0:00:00]} 46. Rd5 {[%emt 0:00:00]} Ke4 {[%emt 0:00:00]} (46... Rh2+ $142 47. Kg1 Rd2) 47. Rd6 $19 {[%emt 0:00:00]} Kf5 $2 {[%emt 0:00:00]} (47... Rf4+ $1 $19 48. Ke2 Rg4 (48... Kf5 49. Rd5+ Ke4 50. Rd6 $11) 49. Rxg6 Rg2+ 50. Kf1 Rg4) 48. Rd5+ {[%emt 0:00:00] [#]} (48. Kg3 $11 Re4 (48... Kxg5 49. Rd5+ Kf6 50. Kxh4 Ke6 51. Rxd4 Ke5 52. Rb4 Kf5 53. Ra4 g5+ 54. Kh5) 49. Kf3) 48... Ke6 $1 $17 {[%emt 0:00:00]} ({Reject} 48... Ke4 $6 49. Rd6 $11) 49. Ra5 {[%emt 0:02:15] [#]} Re4 {[%emt 0:00:00]} (49... Rh3 $1 $17) 50. Kf3 $15 {[%emt 0:00:43]} Re1 {[%emt 0:00:00]} 51. Ra6+ $2 {[%emt 0:02:27][%mdl 8192]} (51. Kf2 $1 $15 Re3 52. Ra6+ Kf5 53. Rd6) 51... Ke5 $2 {[%emt 0:00:00]} (51... Kf5 $19 52. Rd6 Ke5 (52... Kxg5 53. Rd5+ Kh4 54. Rxd4+ Kh3 55. Kf2 $11)) 52. Kf2 $11 {[%emt 0:02:07]} Re4 {[%emt 0:00:00]} 53. Rxg6 {[%emt 0:00:31]} d3 {[%emt 0:00:00]} 54. Rg8 {[%emt 0:00:19]} Kd4 {[%emt 0:00:00]} 55. g6 {[%emt 0:00:22]} Re2+ {[%emt 0:00:00]} 56. Kf1 {[%emt 0:00:57]} Re7 {[%emt 0:00:00]} 57. g7 {[%emt 0:00:14]} Ke5 {[%emt 0:00:15]} 58. Ke1 {[%emt 0:00:15]} Kf6+ {[%emt 0:00:02]} 59. Kd2 {[%emt 0:00:05]} Rxg7 {[%emt 0:00:02]} 60. Rxg7 {[%emt 0:00:06]} Kxg7 {[%emt 0:00:02]} 61. Ke1 {[%emt 0:02:24]} 1/2-1/2

[Event "CIS Master Groups 2024"]
[Site "Vasto"]
[Date "2024.04.14"]
[Round "11.6"]
[White "Iermito, Sebastian"]
[Black "Dardha, Daniel"]
[Result "1/2-1/2"]
[ECO "B30"]
[WhiteElo "2511"]
[BlackElo "2630"]
[Annotator "TA"]
[PlyCount "61"]
[EventDate "2024.04.07"]
[EventType "team-tourn"]
[EventCountry "ITA"]
[SourceTitle "playchess.com"]
[Source "ChessBase"]
[SourceQuality "1"]
[TimeControl "40/5400+30:900+30"]

{[%evp 9,61,6,17,13,12,29,4,14,14,18,0,0,0,0,2,0,8,-11,0,-30,-30,-22,-25,-26,-2,-39,-11,-22,0,0,2,18,24,0,0,7,0,-29,-34,-29,-27,-29,-19,-23,-16,-11,0,0,-3,-7,1,0,0,8]} 1. e4 {[%emt 0:00:03]} c5 {[%emt 0:09:07]} 2. Nf3 {[%emt 0:00:06]} Nc6 {[%emt 0:00:14]} 3. Bc4 {[%emt 0:00:13]} e6 {[%emt 0:06:56]} 4. O-O {[%emt 0:00:07]} Nf6 {[%emt 0:02:47]} 5. Re1 {[%emt 0:00:09]} d5 {[%emt 0:02:57]} 6. exd5 {[%emt 0:00:17]} Nxd5 {[%emt 0:00:04]} 7. d4 {[%emt 0:00:46]} cxd4 {[%emt 0:00:21]} 8. Nxd4 {[%emt 0:00:18]} Be7 {[%emt 0:01:04]} 9. Nxc6 {[%emt 0:01:10]} bxc6 {[%emt 0:00:06]} 10. Nd2 {[%emt 0:04:23][%cal Bb1d2,Bd2f3,Bf3e5][%mdl 32]} O-O {[%emt 0:02:28]} 11. Nf3 {[%emt 0:02:47]} Bb7 {[%emt 0:03:01]} 12. Qe2 {[%emt 0:04:44]} (12. Ne5 {is interesting.} Bd6 13. Qh5 Qc7 14. Bd3) 12... c5 {[%emt 0:05:00]} 13. c3 {[%emt 0:06:49]} Qc7 {[%emt 0:09:50]} 14. Ne5 {[%emt 0:04:02]} Bd6 {[%emt 0:07:39]} 15. Bd3 {[%emt 0:11:58] [#]} c4 $1 {[%emt 0:02:59]} 16. Bc2 {[%emt 0:07:57]} Rad8 {[%emt 0:03:56]} 17. h4 {[%emt 0:02:47][%cal Bh2h4,Bh4h5][%mdl 32]} Nb6 {[%emt 0:07:22]} 18. h5 {[%emt 0:05:25]} f6 {[%emt 0:05:03]} 19. Nf3 {[%emt 0:03:15]} Rfe8 {[%emt 0:03:42]} 20. Be3 {[%emt 0:15:35]} Nd5 {[%emt 0:05:40]} 21. Rad1 {[%emt 0:00:59]} Qf7 {[%emt 0:01:21]} 22. Qxc4 {[%emt 0:13:32]} ({But not} 22. Bxa7 Nf4 (22... Qxh5 23. Qxc4 g5 24. Bc5 $11) 23. Qe3 Qxh5 $17 (23... Nxh5 24. Ba4 $16) (23... Bxf3 24. Qxf3 Qxa7 25. Rxd6 $11)) 22... Qxh5 {[%emt 0:03:06]} 23. Qh4 {[%emt 0:06:29]} Qxh4 {[%emt 0:00:23]} 24. Nxh4 {[%emt 0:00:01]} Nxe3 {[%emt 0:04:16]} 25. Rxe3 {[%emt 0:00:08]} Bc5 {[%emt 0:02:49] A strong pair of Bishops.} 26. Red3 {[%emt 0:02:33]} Rxd3 {[%emt 0:01:21]} 27. Rxd3 {[%emt 0:00:06] The position is equal.} g5 {[%emt 0:03:54]} 28. Nf3 {[%emt 0:01:33]} g4 {[%emt 0:03:53]} 29. Nd4 {[%emt 0:01:55]} Be4 {[%emt 0:00:28]} 30. Rg3 {[%emt 0:02:00]} Bxc2 {[%emt 0:00:31]} 31. Nxc2 {[%emt 0:00:04] An even fight not without its subleties.   Weighted Error Value: White=0.08 (flawless) /Black=0.06 (flawless) .  Inaccurate:     	White=3     	Black=1      OK:         	White=8     	Black=11     Best:        	---       	Black=1} 1/2-1/2

[Event "CIS Master Groups 2024"]
[Site "Vasto"]
[Date "2024.04.14"]
[Round "11.7"]
[White "Basso, Pier Luigi"]
[Black "Godena, Michele"]
[Result "1/2-1/2"]
[ECO "D26"]
[WhiteElo "2507"]
[BlackElo "2429"]
[Annotator "TA"]
[PlyCount "83"]
[EventDate "2024.04.07"]
[EventType "team-tourn"]
[EventCountry "ITA"]
[SourceTitle "playchess.com"]
[Source "ChessBase"]
[SourceQuality "1"]
[TimeControl "40/5400+30:900+30"]

{[%evp 13,83,50,36,38,37,50,29,42,28,41,31,52,27,23,40,54,60,0,10,11,12,19,9,13,18,12,16,15,27,23,22,13,22,17,37,40,49,52,48,49,45,41,48,47,41,30,27,19,16,8,29,10,25,27,29,10,8,8,43,3,8,0,0,0,0,0,0,0,0,-41,-41,-41]} 1. d4 {[%emt 0:09:00]} d5 {[%emt 0:00:07]} 2. c4 {[%emt 0:00:07]} dxc4 {[%emt 0:00:21]} 3. Nf3 {[%emt 0:00:07]} Nf6 {[%emt 0:01:30]} 4. e3 {[%emt 0:01:38]} a6 {[%emt 0:07:17]} 5. Bxc4 {[%emt 0:00:10]} b5 {[%emt 0:01:32]} 6. Bd3 {[%emt 0:00:18]} Bb7 {[%emt 0:00:15]} 7. O-O {[%emt 0:00:48]} e6 {[%emt 0:00:16]} 8. Qe2 {[%emt 0:00:08]} Nbd7 {[%emt 0:13:15]} 9. a4 {[%emt 0:00:12]} Be7 {[%emt 0:00:32]} 10. axb5 {[%emt 0:03:12] White has an edge.} axb5 {[%emt 0:02:05]} 11. Rxa8 {[%emt 0:00:06]} Qxa8 {[%emt 0:00:05]} 12. Bxb5 {[%emt 0:00:06]} O-O {[%emt 0:00:05]} 13. Nc3 {[%emt 0:00:58]} c5 {[%emt 0:04:13]} 14. Rd1 {[%emt 0:03:32]} cxd4 {[%emt 0:05:21]} 15. exd4 {[%emt 0:02:42]} (15. Nxd4 $14 Ne5 (15... Bxg2 $2 {loses.} 16. Bxd7 Nxd7 17. e4 $18) 16. f3) 15... Bxf3 {[%emt 0:10:36]} 16. Qxf3 {[%emt 0:02:50]} Qxf3 {[%emt 0:00:06]} 17. gxf3 {[%emt 0:00:05]} Nb6 {[%emt 0:00:05]} 18. Be3 {[%emt 0:05:11]} Rb8 {[%emt 0:11:53]} 19. Bf4 {[%emt 0:04:35]} Ra8 {[%emt 0:04:51]} 20. Bc6 {[%emt 0:01:38] This pair of bishops is nice.} Rc8 {[%emt 0:06:52]} 21. d5 {[%emt 0:05:17]} exd5 {[%emt 0:09:44]} 22. Nxd5 {[%emt 0:02:26]} Nfxd5 {[%emt 0:03:40]} 23. Bxd5 {[%emt 0:00:06]} g5 {[%emt 0:00:19]} 24. Be3 {[%emt 0:01:26]} Nxd5 {[%emt 0:04:20]} 25. Rxd5 $14 {[%emt 0:00:09][%mdl 4096] Endgame. KRB-KRB} Rb8 {[%emt 0:00:04]} 26. Bd4 {[%emt 0:00:26]} f6 {[%emt 0:01:02]} 27. Rd7 {[%emt 0:02:47]} Kf8 {[%emt 0:00:08]} 28. Kg2 {[%emt 0:00:07]} Rb5 {[%emt 0:04:05]} 29. Kf1 {[%emt 0:04:07]} Kf7 {[%emt 0:01:28]} 30. Ke2 {[%emt 0:00:17]} Ke6 {[%emt 0:00:50]} 31. Ra7 {[%emt 0:01:03]} h5 {[%emt 0:05:44]} 32. h3 {[%emt 0:00:31]} Bd6 {[%emt 0:02:00]} 33. Ra6 {[%emt 0:01:45]} Ke7 {[%emt 0:00:02]} 34. Kd3 {[%emt 0:02:28][%cal Of3f4]} Rf5 {[%emt 0:01:19]} 35. Ke3 {[%emt 0:02:10]} Be5 {[%emt 0:01:21]} 36. Bc5+ {[%emt 0:00:12]} Kd7 {[%emt 0:00:12]} 37. b4 {[%emt 0:00:06]} (37. Ke4 $5 Rf4+ $8 38. Kd5 $11) 37... Rf4 {[%emt 0:00:04]} 38. Ke2 {[%emt 0:07:27]} Rh4 {[%emt 0:00:33]} 39. b5 {[%emt 0:00:08]} Rxh3 {[%emt 0:00:54]} 40. Ra7+ {[%emt 0:00:34]} Ke6 {[%emt 0:00:32]} 41. b6 {[%emt 0:17:50] [#] Strongly threatening Re7+.} Rh1 $1 {[%emt 0:05:14]} 42. Be3 {[%emt 0:00:00] Weighted Error Value: White=0.08 (flawless) /Black=0.04 (flawless) .  Mistake:       	White=1     	---        Inaccurate:     	White=2     	Black=1      OK:         	White=17    	Black=16     Best:        	---       	Black=2      Strong:       	---       	Black=1} 1/2-1/2

[Event "CIS Master Groups 2024"]
[Site "Vasto"]
[Date "2024.04.14"]
[Round "11.8"]
[White "Bellia, Fabrizio"]
[Black "Ladron De Guevara Pinto, Paolo"]
[Result "0-1"]
[ECO "B70"]
[WhiteElo "2384"]
[BlackElo "2394"]
[Annotator "TA"]
[PlyCount "92"]
[EventDate "2024.04.07"]
[EventType "team-tourn"]
[EventCountry "ITA"]
[SourceTitle "playchess.com"]
[Source "ChessBase"]
[SourceQuality "1"]
[TimeControl "40/5400+30:900+30"]

{[%evp 18,92,7,0,0,-19,-21,-47,-28,-27,-12,-16,0,0,0,0,0,0,0,0,0,0,18,-110,-108,-110,-112,-100,-102,-126,-127,-128,-118,-122,-114,-144,-144,-185,-169,-179,-178,-201,-186,-205,-201,-229,-202,-227,-224,-220,-147,-176,-178,-172,-170,-379,-179,-375,-377,-365,-356,-266,-266,-367,-319,-450,-364,-491,-286,-454,-438,-1199,-1180,-1227,-1125,-1066,-836]} 1. e4 {[%emt 0:00:05]} c5 {[%emt 0:03:01]} 2. Nf3 {[%emt 0:00:05]} d6 {[%emt 0:00:12]} 3. d4 {[%emt 0:00:12]} cxd4 {[%emt 0:00:07]} 4. Nxd4 {[%emt 0:00:05]} Nf6 {[%emt 0:00:11]} 5. Nc3 {[%emt 0:00:04]} g6 {[%emt 0:00:22]} 6. g3 {[%emt 0:02:19]} Nc6 {[%emt 0:00:07]} 7. Bg2 {[%emt 0:00:22]} Nxd4 {[%emt 0:00:20]} 8. Qxd4 {[%emt 0:00:03]} Bg7 {[%emt 0:00:08]} 9. O-O {[%emt 0:00:47]} O-O {[%emt 0:00:08]} 10. h3 {[%emt 0:01:24]} Be6 {[%emt 0:08:05][%cal Of6d5]} 11. Qe3 {[%emt 0:03:04]} Qc8 {[%emt 0:15:27]} 12. g4 {[%emt 0:01:16]} Nd7 {[%emt 0:03:27] Black is slightly better.} 13. Bd2 {[%emt 0:06:54] [#]} b5 $1 {[%emt 0:08:37]} 14. Rab1 {[%emt 0:02:24]} Nb6 {[%emt 0:28:17]} 15. b3 {[%emt 0:03:46] Prevents Nc4.} b4 $36 {[%emt 0:01:00][%mdl 2048] Black has good play.} 16. Nd5 {[%emt 0:01:26]} Bxd5 {[%emt 0:00:07]} 17. exd5 {[%emt 0:00:05]} Qxc2 {[%emt 0:00:05]} 18. Bxb4 {[%emt 0:00:26]} Qxa2 {[%emt 0:02:01]} 19. Qxe7 {[%emt 0:00:49]} Rad8 {[%emt 0:05:10]} 20. Rfe1 {[%emt 0:02:43]} (20. Bxd6 $2 Nc8 $19) (20. Qe3 $11 {keeps the balance.}) 20... a5 $1 $17 {[%emt 0:00:12] Black continues to play with concentration.} 21. Qe3 {[%emt 0:09:12]} (21. Bxd6 $2 Nc8 $19) 21... axb4 {[%emt 0:01:59]} 22. Qxb6 {[%emt 0:00:06]} Bc3 {[%emt 0:00:04]} 23. Red1 {[%emt 0:01:23] [#]} Qe2 $1 {[%emt 0:07:42]} 24. Bf1 {[%emt 0:02:23]} Qe5 {[%emt 0:00:54] Black is more active.} 25. Rd3 {[%emt 0:00:32]} f5 {[%emt 0:02:26]} 26. Qe3 {[%emt 0:03:31]} Qxe3 {[%emt 0:00:59]} 27. fxe3 {[%emt 0:03:04]} fxg4 {[%emt 0:00:10]} 28. hxg4 {[%emt 0:00:07]} Ra8 {[%emt 0:00:13]} 29. Bg2 {[%emt 0:03:03]} Ra2 {[%emt 0:00:22]} 30. Rf1 {[%emt 0:00:20]} Rb2 {[%emt 0:01:17]} 31. e4 {[%emt 0:01:21]} Kg7 {[%emt 0:05:04]} ({Don't do} 31... Rxb3 32. e5) 32. g5 {[%emt 0:04:54]} Rxf1+ {[%emt 0:03:29]} ({Don't take} 32... Rxb3 33. e5 dxe5 34. Rdd1) 33. Bxf1 $19 {[%emt 0:00:21][%mdl 4096] Endgame. KRB-KRB} Rd2 {[%emt 0:02:30]} ({Not} 33... Rxb3 34. e5 $11) 34. Rh3 {[%emt 0:01:36]} Bd4+ {[%emt 0:00:14]} 35. Kh1 {[%emt 0:00:08]} Be5 {[%emt 0:00:56]} 36. Rf3 $2 {[%emt 0:02:49] [#]} (36. Bc4) 36... Rh2+ $1 {[%emt 0:00:10]} 37. Kg1 {[%emt 0:00:05]} Rh5 {[%emt 0:00:03]} 38. Bh3 {[%emt 0:00:06]} Rxg5+ {[%emt 0:00:03]} 39. Kf2 {[%emt 0:00:13]} h5 {[%emt 0:00:35]} 40. Be6 {[%emt 0:01:03]} Kh6 {[%emt 0:01:09]} 41. Bd7 {[%emt 0:17:45]} (41. Rd3 $142) 41... Bg7 {[%emt 0:17:44]} 42. Be6 {[%emt 0:03:17]} Bc3 {[%emt 0:00:00]} (42... Bd4+ $142 43. Ke2 Rg2+ 44. Kd3 Be5) 43. Rf7 {[%emt 0:00:00]} (43. Rd3 {was forced.}) 43... Bd4+ {[%emt 0:00:00] Black is clearly winning.} 44. Kf3 {[%emt 0:00:00]} (44. Ke2 $142) 44... Be5 {[%emt 0:00:00]} 45. Re7 {[%emt 0:00:00]} Rg3+ {[%emt 0:00:00]} 46. Ke2 {[%emt 0:00:00]} Kg5 {[%emt 0:00:00] Weighted Error Value: White=0.47/Black=0.11 (very precise) .  Mistake:       	White=5     	Black=1      Inaccurate:     	White=4     	Black=1      OK:         	White=7     	Black=16     Best:        	White=3     	Black=4      Strong:       	---       	Black=3} 0-1

[Event "CIS Master Groups 2024"]
[Site "Vasto"]
[Date "2024.04.14"]
[Round "11.9"]
[White "Favaloro, Andrea"]
[Black "Zwirs, Nico"]
[Result "1/2-1/2"]
[ECO "B55"]
[WhiteElo "2412"]
[BlackElo "2480"]
[Annotator "TA"]
[PlyCount "22"]
[EventDate "2024.04.07"]
[EventType "team-tourn"]
[EventCountry "ITA"]
[SourceTitle "playchess.com"]
[Source "ChessBase"]
[SourceQuality "1"]
[TimeControl "40/5400+30:900+30"]

{[%evp 9,22,0,-4,6,2,0,3,0,14,0,25,23,28,24,26]} 1. e4 {[%emt 0:00:12]} c5 {[%emt 0:00:08]} 2. Nf3 {[%emt 0:00:16]} d6 {[%emt 0:00:06]} 3. d4 {[%emt 0:00:17]} cxd4 {[%emt 0:00:02]} 4. Nxd4 {[%emt 0:00:18]} Nf6 {[%emt 0:00:05]} 5. Bd3 {[%emt 0:00:17]} Nc6 {[%emt 0:12:06]} 6. Be3 {[%emt 0:00:33]} Ng4 {[%emt 0:12:39]} 7. Nxc6 {[%emt 0:00:26]} bxc6 {[%emt 0:00:01]} 8. Bd2 {[%emt 0:00:13]} e5 {[%emt 0:05:35]} 9. O-O {[%emt 0:02:42]} Be7 {[%emt 0:00:49]} 10. c4 {[%emt 0:00:49]} O-O {[%emt 0:01:11]} 11. Nc3 {[%emt 0:00:42]} Rb8 {[%emt 0:10:52] A rather calm draw.   Weighted Error Value: White=0.02 (flawless) /Black=0.09 (flawless) .  OK:         	White=4     	Black=1} 1/2-1/2

[Event "CIS Master Groups 2024"]
[Site "Vasto"]
[Date "2024.04.14"]
[Round "11.10"]
[White "Loiacono, Leonardo"]
[Black "Iturrizaga Bonelli, Eduardo"]
[Result "0-1"]
[ECO "B41"]
[WhiteElo "2309"]
[BlackElo "2589"]
[Annotator "TA"]
[PlyCount "64"]
[EventDate "2024.04.07"]
[EventType "team-tourn"]
[EventCountry "ITA"]
[SourceTitle "playchess.com"]
[Source "ChessBase"]
[SourceQuality "1"]
[TimeControl "40/5400+30:900+30"]

{[%evp 11,64,23,35,21,58,54,51,46,59,35,47,64,50,66,31,50,64,56,66,0,0,-8,-12,-25,-29,-21,-29,-36,-25,-29,-13,-20,-18,-76,-83,-74,-70,-80,-79,-79,-70,-389,-394,-975,-1070,-1056,-1041,-982,-936,-29972,-29972,-29966,-29967,-29993,-29992]} 1. e4 {[%emt 0:00:07]} c5 {[%emt 0:00:34]} 2. Nf3 {[%emt 0:00:06][%cal Bg1f3,Bf3d4,Bd4c2][%mdl 32]} e6 {[%emt 0:00:49]} 3. d4 {[%emt 0:00:07]} cxd4 {[%emt 0:00:06]} 4. Nxd4 {[%emt 0:00:04]} a6 {[%emt 0:01:36]} 5. c4 {[%emt 0:03:12]} Nf6 {[%emt 0:00:13]} 6. Nc3 {[%emt 0:00:31]} Bb4 {[%emt 0:00:19]} 7. Qd3 {[%emt 0:01:04]} d6 {[%emt 0:00:24]} 8. Nc2 {[%emt 0:01:29]} Bxc3+ {[%emt 0:00:07]} 9. Qxc3 {[%emt 0:00:03] White is slightly better.} O-O {[%emt 0:00:07]} 10. Bd3 {[%emt 0:13:23]} b5 {[%emt 0:05:48]} 11. cxb5 {[%emt 0:04:07]} axb5 {[%emt 0:00:07]} 12. f3 {[%emt 0:01:33]} Bb7 {[%emt 0:03:41]} 13. Be3 {[%emt 0:02:01][%cal Oe1g1]} Nc6 {[%emt 0:02:10]} 14. O-O {[%emt 0:19:09]} Rc8 {[%emt 0:00:29]} 15. Qb3 {[%emt 0:17:26]} ({White should play} 15. Bxb5 $14 Na7 16. Bc4 (16. Bxa7 $2 Rxc3 17. bxc3 Qa5 $19)) 15... d5 $11 {[%emt 0:04:19]} 16. exd5 {[%emt 0:08:33]} Nxd5 {[%emt 0:00:44] ...Na5 is the strong threat.} 17. Rfd1 {[%emt 0:08:34]} (17. Bxb5 $2 Na5 18. Qa4 Rxc2 $19) 17... Na5 {[%emt 0:19:34] Excellent horsemanship.} 18. Qa3 {[%emt 0:01:54]} (18. Qxb5 $2 {loses.} Bc6 19. Qa6 Ra8 20. Bxh7+ (20. Ba7 $2 Qc7 $19) 20... Kxh7 $19) 18... Nc4 {[%emt 0:01:05]} 19. Bxc4 {[%emt 0:03:45]} Rxc4 {[%emt 0:00:06]} 20. Nb4 {[%emt 0:00:24]} Qf6 {[%emt 0:00:04]} 21. Nxd5 {[%emt 0:00:40]} Bxd5 {[%emt 0:00:04]} 22. b3 {[%emt 0:04:25]} (22. Rd2 $1 $11) 22... Rc2 $17 {[%emt 0:01:39][%cal Oc2g2] [#] ( -> ...Rxg2+!)} 23. Bf2 {[%emt 0:01:56] White is weak on the light squares} Qg5 {[%emt 0:09:02]} 24. Kf1 {[%emt 0:02:04]} h6 {[%emt 0:11:17] Black is much more active.} 25. Qb4 {[%emt 0:01:10]} Rfc8 $40 {[%emt 0:00:06][%mdl 128] Black attacks.} 26. Qe1 {[%emt 0:01:48][%mdl 8192] This move loses the game for White.} (26. Qd4 $15) 26... R8c3 $19 {[%emt 0:00:38]} 27. Bg3 $2 {[%emt 0:03:26] [#]} (27. Rd4 Bxf3 28. gxf3 Rxf3 29. Rad1 Rfxf2+ (29... Rcxf2+ $2 30. Qxf2 Rxf2+ 31. Kxf2 $19) 30. Qxf2 Rxf2+ 31. Kxf2) 27... Bxf3 $1 {[%emt 0:02:04][%mdl 512]} 28. gxf3 {[%emt 0:00:51]} Rxf3+ {[%emt 0:00:05]} ({Weaker is} 28... Re3 29. Rd8+ Kh7 30. Qd1 $11) 29. Kg1 {[%emt 0:00:31]} Re3 {[%emt 0:00:20]} 30. Qf2 {[%emt 0:00:26]} Rxf2 {[%emt 0:00:07] Black mates.} 31. Kxf2 {[%emt 0:00:02]} Rc3 {[%emt 0:00:09]} 32. a4 {[%emt 0:00:23]} Qe3+ {[%emt 0:00:12] Weighted Error Value: White=0.73/Black=0.04 (flawless) .  Loses game:     	White=1     	---        Mistake:       	White=3     	---        Inaccurate:     	---       	Black=1      OK:         	White=10    	Black=7      Best:        	White=1     	Black=2} 0-1